bitfinex/quotes_SOLUSD_20220119
["timestamp","ask_amount","ask_price","bid_price","bid_amount"]
[1642635358285,5.87340924,136.5,136.48,10.9889]
[1642635360687,40.77108337,136.53,136.49,0.1909907]
[1642635360888,40.77108337,136.53,136.49,11.1788907]
[1642635361090,6.0,136.52,136.49,11.1788907]
[1642635361490,6.26,136.52,136.49,11.1788907]
[1642635361886,0.26,136.52,136.49,11.1788907]
[1642635362089,5.87340924,136.51,136.49,11.1788907]
[1642635362322,5.87340924,136.51,136.49,10.9879]
[1642635362489,5.87340924,136.51,136.49,37.11380705]
[1642635362688,3.03219997,136.51,136.5,10.9869]
[1642635362889,6.0,136.53,136.5,10.9869]
[1642635363290,1.46304062,136.54,136.5,10.9869]
[1642635363490,24.56548202,136.57,136.5,10.9869]
[1642635363690,24.82548202,136.57,136.5,10.9869]
[1642635363891,22.7708,136.57,136.5,10.9869]
[1642635364090,22.5108,136.57,136.5,10.9869]
[1642635364293,22.5108,136.57,136.5,11.2469]
[1642635364692,51.50400211,136.59,136.5,11.2469]
[1642635365098,49.44932009,136.59,136.53,10.9846]
[1642635365492,0.25,136.58,136.53,10.9846]
[1642635365894,49.44932009,136.59,136.53,10.9846]
[1642635366097,49.44932009,136.59,136.54,11.2339]
[1642635366704,49.70932009,136.59,136.54,11.2339]
[1642635371141,59.27498202,136.62,136.54,11.2339]
[1642635371336,6.25,136.6,136.54,11.2339]
[1642635371535,6.0,136.59,136.54,11.2339]
[1642635372139,6.0,136.59,136.55,26.12590705]
[1642635372336,0.26,136.59,136.55,37.10860705]
[1642635372735,0.25,136.6,136.55,37.10860705]
[1642635374538,0.25,136.61,136.55,37.10860705]
[1642635375842,48.29138202,136.62,136.55,37.10860705]
[1642635376141,46.2367,136.62,136.57,10.9814]
[1642635376342,3.27190536,136.63,136.57,10.9814]
[1642635376543,6.0,136.62,136.57,10.9814]
[1642635377347,0.25,136.61,136.57,10.9814]
[1642635378244,0.25,136.61,136.54,2.928]
[1642635378446,73.75,136.61,136.53,23.6302]
[1642635378648,6.0,136.6,136.53,23.6302]
[1642635379045,6.0,136.6,136.53,56.99667672]
[1642635379046,41.42854557,136.6,136.53,56.99667672]
[1642635379646,0.25,136.59,136.54,0.25]
[1642635380249,41.42854557,136.6,136.54,0.25]
[1642635380453,0.26,136.6,136.54,0.25]
[1642635380748,0.26,136.61,136.54,0.25]
[1642635380947,0.26,136.61,136.55,2.928]
[1642635381174,24.91798202,136.62,136.56,0.25]
[1642635381375,24.91798202,136.62,136.56,2.99021083]
[1642635381574,22.8633,136.62,136.56,2.99021083]
[1642635382675,24.91798202,136.62,136.56,2.99021083]
[1642635383078,24.91798202,136.62,136.56,13.97151083]
[1642635383477,2.05468202,136.62,136.56,14.23151083]
[1642635383678,2.05468202,136.63,136.57,2.928]
[1642635383976,2.08374057,136.64,136.57,8.928]
[1642635384176,2.08374057,136.64,136.58,0.25]
[1642635384882,2.34374057,136.64,136.58,0.25]
[1642635385077,2.34374057,136.64,136.58,11.2289]
[1642635385078,2.08374057,136.64,136.58,11.2289]
[1642635385283,2.08374057,136.64,136.59,25.85537574]
[1642635385481,0.02905855,136.64,136.59,25.85537574]
[1642635385678,0.02905855,136.64,136.6,6.25]
[1642635386078,0.02905855,136.64,136.6,6.51]
[1642635386879,0.02905855,136.64,136.6,9.437]
[1642635387079,0.02905855,136.64,136.6,20.4149]
[1642635388184,0.02905855,136.64,136.6,17.4879]
[1642635388588,0.02905855,136.64,136.6,16.9779]
[1642635389190,0.02905855,136.64,136.61,0.25]
[1642635389387,5.87340924,136.63,136.61,11.2283]
[1642635389587,5.87340924,136.63,136.61,11.4192907]
[1642635390388,5.87340924,136.63,136.61,11.2283]
[1642635393395,5.87340924,136.63,136.61,11.4192907]
[1642635394692,5.87340924,136.63,136.61,11.1692907]
[1642635394892,5.87340924,136.63,136.61,10.9783]
[1642635397696,6.13340924,136.63,136.6,16.979]
[1642635398198,8.18809126,136.63,136.6,16.979]
[1642635398401,7.92809126,136.63,136.6,16.979]
[1642635398599,8.18809126,136.63,136.6,16.979]
[1642635398798,7.92809126,136.63,136.6,16.979]
[1642635398999,8.18809126,136.63,136.6,16.979]
[1642635399399,8.18809126,136.63,136.61,0.25]
[1642635399601,6.13340924,136.63,136.61,11.2285]
[1642635399832,8.18809126,136.63,136.61,11.4194907]
[1642635400000,8.18809126,136.63,136.61,11.2285]
[1642635401701,7.92809126,136.63,136.61,11.4194907]
[1642635401902,2.08374057,136.64,136.61,11.4194907]
[1642635402103,0.02905855,136.64,136.61,11.39794527]
[1642635402503,0.02905855,136.64,136.62,21.22871181]
[1642635404102,0.02905855,136.64,136.63,0.1909907]
[1642635404904,0.02905855,136.64,136.62,10.9774]
[1642635405305,2.08374057,136.64,136.62,10.9774]
[1642635405508,5.87340924,136.63,136.62,10.9774]
[1642635405708,0.02905855,136.64,136.62,11.4183907]
[1642635406310,2.08374057,136.64,136.62,11.2274]
[1642635406711,2.34374057,136.64,136.62,11.2274]
[1642635406910,5.87340924,136.63,136.62,11.2274]
[1642635408510,5.87340924,136.63,136.62,0.25]
[1642635408913,5.87340924,136.63,136.59,2.927]
[1642635409112,8.18809126,136.63,136.57,2.927]
[1642635409313,8.18809126,136.63,136.56,10.6]
[1642635409314,2.05468202,136.62,136.56,10.6]
[1642635409512,2.05468202,136.62,136.58,10.9808]
[1642635409713,2.31468202,136.62,136.58,10.9808]
[1642635409912,39.82376335,136.61,136.58,10.9808]
[1642635410117,2.05468202,136.61,136.58,10.9808]
[1642635410417,2.31468202,136.61,136.58,10.9808]
[1642635412819,2.05468202,136.6,136.58,10.9808]
[1642635413221,2.31468202,136.6,136.58,10.9808]
[1642635413927,5.87340924,136.59,136.58,10.9808]
[1642635414227,5.87340924,136.59,136.58,16.9808]
[1642635414429,3.03219997,136.59,136.58,11.1717907]
[1642635416251,5.87340924,136.59,136.58,10.9808]
[1642635420356,5.87340924,136.59,136.58,11.2308]
[1642635421060,0.26,136.6,136.58,11.4217907]
[1642635421258,2.31468202,136.61,136.58,11.4217907]
[1642635421959,2.05468202,136.62,136.58,11.6817907]
[1642635422160,2.05468202,136.63,136.59,0.25]
[1642635422360,2.05468202,136.63,136.6,10.9775]
[1642635422560,2.05468202,136.63,136.61,0.1909907]
[1642635422760,0.02905855,136.64,136.61,0.4409907]
[1642635422761,2.08374057,136.64,136.61,0.4409907]
[1642635422960,0.02905855,136.64,136.61,3.3679907]
[1642635423162,0.02905855,136.64,136.61,9.3679907]
[1642635423362,0.02905855,136.64,136.62,10.977]
[1642635423660,0.02905855,136.64,136.63,2.927]
[1642635423961,0.02905855,136.64,136.63,29.12900707]
[1642635424164,0.02905855,136.64,136.63,29.38900707]
[1642635424362,0.02905855,136.64,136.63,26.65299777]
[1642635424962,0.02905855,136.64,136.63,37.62739777]
[1642635426600,0.02905855,136.64,136.63,43.62739777]
[1642635428803,0.02905855,136.64,136.63,46.55439777]
[1642635429903,0.02905855,136.64,136.63,43.62739777]
[1642635434413,50.0,136.66,136.63,45.00001915]
[1642635434607,50.0,136.66,136.65,10.9717]
[1642635434808,50.0,136.66,136.65,11.4817]
[1642635435109,50.0,136.66,136.65,17.4817]
[1642635435110,23.59744409,136.66,136.65,17.4817]
[1642635435610,23.59744409,136.66,136.65,24.60690506]
[1642635436211,23.59744409,136.66,136.65,24.79789576]
[1642635437211,23.59744409,136.66,136.65,17.6726907]
[1642635437413,23.59744409,136.66,136.65,17.4126907]
[1642635437611,23.59744409,136.66,136.65,0.1909907]
[1642635438317,29.47085333,136.66,136.64,10.9759]
[1642635439314,29.47085333,136.66,136.65,0.25]
[1642635441416,0.00468202,136.71,136.65,0.25]
[1642635441618,5.60090082,136.8,136.75,3.33]
[1642635441816,2.926,136.81,136.76,0.25]
[1642635442019,46.4815,136.83,136.75,3.59]
[1642635442020,46.4815,136.83,136.75,3.33]
[1642635442215,2.924,136.82,136.75,3.33]
[1642635442416,2.924,136.82,136.76,1.44290283]
[1642635442617,93.99326127,136.83,136.76,12.65890283]
[1642635442817,47.51176127,136.83,136.75,3.33]
[1642635443717,2.924,136.87,136.76,0.25]
[1642635443920,2.924,136.87,136.76,18.22262138]
[1642635444117,2.923,136.91,136.77,4.29562138]
[1642635444317,76.423,136.92,136.78,10.6]
[1642635444519,2.923,136.92,136.78,16.85]
[1642635444720,40.37361105,136.91,136.79,10.9622]
[1642635444920,40.37361105,136.91,136.8,13.522]
[1642635445216,40.37361105,136.91,136.81,16.85]
[1642635445419,73.5,136.9,136.82,2.922]
[1642635445618,40.37361105,136.91,136.82,10.6]
[1642635445819,40.37361105,136.91,136.83,0.25]
[1642635446018,2.922,136.9,136.81,6.0]
[1642635446420,6.0,136.89,136.81,6.0]
[1642635446620,37.11080014,136.88,136.81,6.0]
[1642635447418,37.11080014,136.88,136.82,0.25]
[1642635447819,37.37080014,136.88,136.82,0.25]
[1642635449823,37.37080014,136.88,136.82,11.2111]
[1642635450926,110.87080014,136.88,136.82,11.2111]
[1642635451127,37.37080014,136.88,136.82,11.2111]
[1642635451525,37.11080014,136.88,136.82,11.4711]
[1642635451726,6.0,136.89,136.83,13.522]
[1642635451926,6.0,136.89,136.84,10.9582]
[1642635452127,0.26,136.89,136.85,2.922]
[1642635452353,0.26,136.89,136.86,0.25]
[1642635452552,0.26,136.89,136.87,3.03219997]
[1642635452753,45.67724986,136.9,136.87,6.06439994]
[1642635453154,6.0,136.89,136.87,6.06439994]
[1642635453353,6.0,136.89,136.84,2.922]
[1642635453354,79.76,136.89,136.84,2.922]
[1642635453554,6.26,136.89,136.82,2.922]
[1642635453754,0.25,136.88,136.81,10.6]
[1642635453956,0.25,136.88,136.82,6.25]
[1642635454354,0.25,136.88,136.82,6.0]
[1642635455156,79.76,136.89,136.82,6.0]
[1642635455355,6.26,136.89,136.82,6.0]
[1642635455559,6.26,136.89,136.83,0.25]
[1642635457058,6.26,136.89,136.83,11.2106]
[1642635457864,6.26,136.89,136.84,2.922]
[1642635458261,6.26,136.89,136.85,0.25]
[1642635458462,6.26,136.89,136.84,2.922]
[1642635459162,6.26,136.89,136.85,0.25]
[1642635459361,6.26,136.89,136.84,13.8819]
[1642635459362,6.26,136.89,136.84,10.9599]
[1642635459562,6.26,136.89,136.85,0.25]
[1642635461265,6.26,136.89,136.83,13.8825]
[1642635461464,0.25,136.88,136.83,2.922]
[1642635461665,0.25,136.88,136.82,2.922]
[1642635461864,48.14618983,136.86,136.79,2.923]
[1642635462064,79.5,136.85,136.72,10.6]
[1642635462266,79.5,136.85,136.75,10.9661]
[1642635462267,114.0679,136.85,136.75,10.9661]
[1642635462464,51.534,136.85,136.76,2.923]
[1642635462664,59.21,136.85,136.74,39.4733]
[1642635462865,59.21,136.85,136.74,36.5493]
[1642635463164,59.21,136.85,136.75,8.924]
[1642635463363,132.71,136.85,136.75,8.924]
[1642635463566,41.7339,136.85,136.77,10.9649]
[1642635463765,35.3789,136.85,136.78,2.923]
[1642635463968,24.7789,136.85,136.78,2.923]
[1642635464166,24.7789,136.85,136.79,0.25]
[1642635464368,24.7789,136.85,136.8,2.923]
[1642635464566,58.74618983,136.86,136.79,3.173]
[1642635464768,59.00618983,136.86,136.8,0.25]
[1642635464967,59.00618983,136.86,136.79,10.964]
[1642635465168,0.25,136.85,136.79,10.964]
[1642635466275,0.25,136.85,136.8,0.25]
[1642635467371,27.2622,136.89,136.81,2.923]
[1642635467372,24.3392,136.89,136.81,2.923]
[1642635467570,2.923,136.92,136.81,2.923]
[1642635467571,6.0,136.88,136.81,2.923]
[1642635467769,6.0,136.88,136.82,0.25]
[1642635467970,6.0,136.91,136.82,3.173]
[1642635468270,40.2466711,136.9,136.84,10.959]
[1642635468673,6.0,136.89,136.85,0.25]
[1642635469073,6.26,136.89,136.85,0.25]
[1642635469876,6.26,136.89,136.85,11.2093]
[1642635473878,6.26,136.89,136.85,11.4693]
[1642635475079,6.26,136.89,136.85,11.2093]
[1642635475283,0.25,136.88,136.84,10.96]
[1642635475482,6.26,136.89,136.84,10.96]
[1642635475880,6.26,136.89,136.81,39.4534]
[1642635476080,79.76,136.89,136.82,0.25]
[1642635476282,0.25,136.88,136.81,10.9624]
[1642635476581,41.08989309,136.87,136.81,10.9624]
[1642635476780,0.25,136.86,136.81,10.9624]
[1642635478285,0.25,136.86,136.8,10.9632]
[1642635479022,6.25,136.86,136.8,10.9632]
[1642635479319,6.51,136.86,136.8,10.9632]
[1642635481121,6.51,136.86,136.79,10.9638]
[1642635481323,101.574,136.86,136.79,10.9638]
[1642635482322,101.574,136.86,136.78,2.923]
[1642635482523,101.574,136.86,136.77,10.9649]
[1642635482822,101.574,136.86,136.78,0.25]
[1642635483028,125.8047,136.86,136.77,6.25]
[1642635483224,125.8047,136.86,136.77,0.25]
[1642635484026,125.8047,136.86,136.78,10.9642]
[1642635484224,125.8047,136.86,136.78,13.8872]
[1642635484425,125.8047,136.86,136.78,2.923]
[1642635484624,10.9672,136.83,136.76,2.923]
[1642635484825,0.25,136.82,136.74,2.924]
[1642635485024,44.45116033,136.8,136.7,10.9713]
[1642635485224,13.774,136.79,136.68,2.924]
[1642635485526,43.1992,136.79,136.68,2.924]
[1642635485724,43.4592,136.79,136.68,2.924]
[1642635486424,46.4058905,136.76,136.68,2.924]
[1642635486624,8.924,136.75,136.68,2.924]
[1642635486825,9.434,136.75,136.68,2.924]
[1642635487629,42.79292071,136.72,136.68,2.924]
[1642635487839,43.05292071,136.72,136.68,2.924]
[1642635488035,0.26,136.72,136.68,2.924]
[1642635488227,8.924,136.75,136.68,2.924]
[1642635488427,10.6,136.76,136.65,2.926]
[1642635488628,0.26,136.75,136.65,9.176]
[1642635488829,0.26,136.75,136.65,10.81329942]
[1642635489032,0.26,136.75,136.66,1.37729942]
[1642635489228,47.20378812,136.76,136.67,3.176]
[1642635489628,0.25,136.75,136.67,4.81329942]
[1642635490028,0.25,136.75,136.68,10.9728]
[1642635490229,0.25,136.75,136.69,3.174]
[1642635490633,0.25,136.75,136.69,3.434]
[1642635491029,0.25,136.75,136.69,0.51]
[1642635491230,0.25,136.75,136.69,0.25]
[1642635491529,2.926,136.78,136.7,10.9701]
[1642635491730,34.0252,136.79,136.71,0.25]
[1642635491930,34.0252,136.79,136.72,2.924]
[1642635492329,39.59229884,136.78,136.72,3.184]
[1642635492530,39.59229884,136.78,136.73,0.25]
[1642635492731,0.25,136.77,136.73,0.25]
[1642635493137,0.25,136.77,136.73,11.2182]
[1642635493332,0.25,136.77,136.73,11.4782]
[1642635493531,0.25,136.77,136.7,2.924]
[1642635493733,0.25,136.77,136.71,0.25]
[1642635493932,6.25,136.77,136.71,0.25]
[1642635494332,6.51,136.77,136.71,0.25]
[1642635495133,17.4803,136.77,136.71,11.2203]
[1642635496532,17.4803,136.77,136.71,0.25]
[1642635498835,17.4803,136.77,136.7,10.9711]
[1642635500236,90.9803,136.77,136.69,13.8958]
[1642635500435,90.9803,136.77,136.69,10.9718]
[1642635501040,90.9803,136.77,136.68,2.924]
[1642635501238,45.60414697,136.74,136.67,10.9734]
[1642635501439,10.9736,136.73,136.67,10.9734]
[1642635501641,11.2236,136.73,136.67,10.9734]
[1642635501837,11.4836,136.73,136.67,10.9734]
[1642635504238,11.4836,136.73,136.66,13.8981]
[1642635504440,54.90974719,136.71,136.65,2.926]
[1642635504739,0.25,136.7,136.64,2.926]
[1642635504969,0.25,136.7,136.62,8.926]
[1642635505378,0.25,136.7,136.65,10.9751]
[1642635506271,43.93464719,136.71,136.66,0.25]
[1642635506470,43.93464719,136.71,136.67,10.973]
[1642635506673,10.6,136.76,136.67,13.899]
[1642635506871,36.8962,136.78,136.68,0.25]
[1642635507070,6.0,136.77,136.69,2.924]
[1642635507270,6.0,136.77,136.69,3.184]
[1642635507569,42.49305714,136.76,136.69,3.184]
[1642635507972,53.72415714,136.76,136.7,10.9708]
[1642635508270,0.25,136.75,136.7,10.9708]
[1642635511173,6.25,136.75,136.7,10.9708]
[1642635511377,6.51,136.75,136.7,10.9708]
[1642635511775,0.51,136.75,136.71,0.25]
[1642635511974,0.26,136.75,136.71,11.2203]
[1642635512173,53.72415714,136.76,136.71,11.2203]
[1642635512373,53.72415714,136.76,136.71,10.9703]
[1642635513178,0.25,136.75,136.71,10.9703]
[1642635513475,53.72415714,136.76,136.7,10.9709]
[1642635513476,53.46415714,136.76,136.7,10.9709]
[1642635513676,53.46415714,136.76,136.71,2.924]
[1642635513878,53.46415714,136.76,136.7,10.9709]
[1642635514077,6.0,136.75,136.7,10.9709]
[1642635514780,0.25,136.74,136.7,10.9709]
[1642635516785,0.25,136.74,136.69,10.9719]
[1642635516982,0.25,136.74,136.63,10.6]
[1642635517182,13.526,136.73,136.6,22.7809]
[1642635517380,13.526,136.73,136.61,3.96124338]
[1642635517381,68.57477796,136.72,136.61,3.96124338]
[1642635517581,13.526,136.71,136.6,22.7809]
[1642635517783,0.25,136.7,136.6,22.7809]
[1642635517982,16.85,136.7,136.6,22.7809]
[1642635518184,48.73453299,136.69,136.6,22.7809]
[1642635518383,10.9772,136.67,136.62,10.9776]
[1642635518583,46.51887834,136.66,136.62,10.9776]
[1642635518784,47.02887834,136.66,136.62,10.9776]
[1642635520585,46.76887834,136.66,136.62,10.9776]
[1642635520786,46.51887834,136.66,136.64,10.9759]
[1642635521188,46.51887834,136.66,136.64,11.2359]
[1642635521385,46.51887834,136.66,136.65,6.06439994]
[1642635521584,46.51887834,136.66,136.64,11.2359]
[1642635522886,46.51887834,136.66,136.63,14.1537]
[1642635523085,46.77887834,136.66,136.63,11.2267]
[1642635523990,46.51887834,136.66,136.63,11.2267]
[1642635525291,46.51887834,136.66,136.63,10.9767]
[1642635526295,10.9757,136.69,136.63,10.9767]
[1642635526494,0.25,136.68,136.63,10.9767]
[1642635527396,49.46471128,136.68,136.63,10.9767]
[1642635527595,49.72471128,136.68,136.63,10.9767]
[1642635530496,49.72471128,136.68,136.63,11.2367]
[1642635530696,49.21471128,136.68,136.64,11.2255]
[1642635531143,49.21471128,136.68,136.64,11.4855]
[1642635533749,49.21471128,136.68,136.64,11.2255]
[1642635533950,49.47471128,136.68,136.64,11.2255]
[1642635534450,0.25,136.67,136.64,10.9755]
[1642635534872,0.25,136.67,136.63,10.9766]
[1642635535474,0.25,136.67,136.6,22.7809]
[1642635535674,0.25,136.67,136.59,36.5898]
[1642635535878,11.2272,136.67,136.61,10.9782]
[1642635536475,11.4872,136.67,136.61,10.9782]
[1642635538376,6.0,136.66,136.61,10.9782]
[1642635538573,46.87268641,136.65,136.61,10.9782]
[1642635538774,47.38268641,136.65,136.61,10.9782]
[1642635540777,58.36148641,136.65,136.61,10.9782]
[1642635541775,58.36148641,136.65,136.6,10.9789]
[1642635542176,58.10148641,136.65,136.6,11.2389]
[1642635543780,58.36148641,136.65,136.6,11.2389]
[1642635545780,47.38268641,136.65,136.6,11.2389]
[1642635546180,0.51,136.65,136.6,11.2389]
[1642635546385,2.927,136.68,136.61,0.25]
[1642635546581,13.527,136.7,136.63,10.976]
[1642635546782,21.5748,136.7,136.64,0.25]
[1642635546983,23.3721,136.71,136.64,3.176]
[1642635547184,10.6,136.73,136.64,16.374]
[1642635547383,10.6,136.73,136.64,17.75129942]
[1642635547582,10.6,136.73,136.65,10.9745]
[1642635547782,10.6,136.77,136.66,0.25]
[1642635547982,10.9709,136.75,136.66,6.25]
[1642635548282,6.0,136.76,136.66,6.51]
[1642635548483,43.74195247,136.75,136.66,6.51]
[1642635548686,44.00195247,136.75,136.69,10.9703]
[1642635549085,44.00195247,136.75,136.7,0.25]
[1642635549884,43.74195247,136.75,136.7,11.2205]
[1642635550284,54.71285247,136.75,136.7,11.2205]
[1642635551284,54.97285247,136.75,136.7,11.2205]
[1642635555289,54.97285247,136.75,136.7,0.25]
[1642635555487,0.25,136.74,136.66,2.924]
[1642635555687,47.47605697,136.72,136.67,0.25]
[1642635556187,0.25,136.71,136.67,0.25]
[1642635556388,47.73605697,136.72,136.67,0.25]
[1642635556988,58.70935697,136.72,136.67,11.2233]
[1642635557990,47.47605697,136.72,136.67,11.4833]
[1642635558191,35.165,136.74,136.67,11.4833]
[1642635558390,6.0,136.76,136.67,11.4833]
[1642635558592,0.25,136.75,136.67,11.4833]
[1642635558991,6.25,136.75,136.68,6.0]
[1642635559191,45.83884317,136.74,136.69,11.2217]
[1642635559693,0.25,136.73,136.69,11.2217]
[1642635561591,46.09884317,136.74,136.69,11.2217]
[1642635563192,46.09884317,136.74,136.69,11.4817]
[1642635564494,57.07064317,136.74,136.69,11.2217]
[1642635564895,57.07064317,136.74,136.69,10.9717]
[1642635565296,57.07064317,136.74,136.7,0.25]
[1642635565497,57.07064317,136.74,136.69,10.9717]
[1642635565699,0.25,136.73,136.69,10.9717]
[1642635570033,0.25,136.73,136.69,11.2317]
[1642635570234,0.25,136.74,136.69,11.2317]
[1642635571034,49.45945135,136.77,136.71,10.9692]
[1642635571236,37.98063022,136.81,136.72,0.25]
[1642635571237,2.924,136.79,136.72,0.25]
[1642635571437,33.391,136.81,136.72,6.25]
[1642635571634,22.791,136.81,136.72,6.25]
[1642635571834,22.791,136.81,136.72,7.88729942]
[1642635572034,84.4655,136.82,136.73,36.5522]
[1642635572237,49.63959619,136.83,136.74,14.1407]
[1642635572436,23.045,136.84,136.74,27.4377]
[1642635572641,29.43380558,136.86,136.74,27.6977]
[1642635572837,24.4477,136.86,136.74,27.6977]
[1642635573038,24.4477,136.86,136.74,31.12741657]
[1642635573236,24.42311133,136.86,136.74,31.12741657]
[1642635573439,21.5614,136.87,136.78,10.9611]
[1642635573636,21.5614,136.87,136.79,6.0]
[1642635573837,21.5614,136.87,136.79,6.51]
[1642635573838,21.8214,136.87,136.79,6.51]
[1642635574037,0.25,136.86,136.79,6.51]
[1642635574638,0.25,136.86,136.81,10.9614]
[1642635574839,0.25,136.86,136.81,17.4404]
[1642635575138,6.0,136.89,136.82,6.25]
[1642635575339,6.0,136.89,136.82,9.432]
[1642635575539,6.0,136.9,136.82,9.432]
[1642635576238,6.0,136.89,136.82,9.432]
[1642635576841,36.17497767,136.88,136.82,9.432]
[1642635577041,36.17497767,136.88,136.83,10.9598]
[1642635577245,36.17497767,136.88,136.84,3.172]
[1642635577443,6.0,136.9,136.84,9.172]
[1642635577644,6.0,136.92,136.84,9.432]
[1642635577845,0.26,136.9,136.84,9.432]
[1642635578047,0.26,136.9,136.84,6.51]
[1642635578443,41.32225876,136.9,136.84,6.51]
[1642635578647,6.0,136.89,136.84,6.51]
[1642635578944,6.0,136.89,136.85,10.9583]
[1642635579346,6.0,136.89,136.86,0.25]
[1642635580449,6.0,136.89,136.85,0.25]
[1642635580850,6.0,136.89,136.86,10.9579]
[1642635581251,6.0,136.89,136.87,0.25]
[1642635581452,6.0,136.89,136.86,11.2179]
[1642635582855,6.26,136.89,136.8,86.4872]
[1642635583053,0.25,136.88,136.81,6.0]
[1642635583258,0.25,136.88,136.81,6.25]
[1642635584554,0.25,136.88,136.81,0.25]
[1642635584755,0.25,136.88,136.79,0.25]
[1642635584953,11.2111,136.88,136.82,10.9613]
[1642635585154,10.9611,136.88,136.82,10.9613]
[1642635585354,11.2211,136.88,136.83,0.25]
[1642635585555,0.26,136.88,136.83,0.25]
[1642635585955,6.26,136.89,136.83,0.25]
[1642635586354,6.26,136.89,136.82,0.25]
[1642635586555,6.26,136.89,136.82,6.25]
[1642635586556,0.25,136.88,136.82,6.25]
[1642635586754,11.2105,136.88,136.83,10.9598]
[1642635587156,11.4705,136.88,136.83,10.9598]
[1642635589286,11.4705,136.88,136.84,0.25]
[1642635591291,35.52271439,136.87,136.84,0.25]
[1642635591691,35.78271439,136.87,136.84,0.25]
[1642635594693,46.74411439,136.87,136.82,10.9614]
[1642635594892,0.25,136.86,136.79,2.923]
[1642635595093,0.25,136.86,136.78,24.5652]
[1642635595296,0.25,136.86,136.79,0.25]
[1642635596000,10.9637,136.84,136.79,11.2137]
[1642635596197,11.2237,136.84,136.79,11.2137]
[1642635600808,0.26,136.84,136.79,11.2137]
[1642635601206,0.25,136.84,136.79,11.2137]
[1642635602907,11.2138,136.84,136.79,11.2137]
[1642635603307,11.4738,136.84,136.79,11.2137]
[1642635604708,11.2238,136.84,136.79,11.2137]
[1642635606542,0.26,136.84,136.79,11.2137]
[1642635606745,0.25,136.84,136.79,11.2137]
[1642635608341,11.223,136.85,136.79,11.2137]
[1642635609145,10.963,136.85,136.79,11.2137]
[1642635609348,2.06210558,136.88,136.79,11.4737]
[1642635609545,2.06210558,136.88,136.82,10.9596]
[1642635609751,6.0,136.89,136.83,3.172]
[1642635609947,6.0,136.89,136.83,9.172]
[1642635610146,6.0,136.88,136.83,3.432]
[1642635610646,6.26,136.88,136.84,10.9588]
[1642635610846,6.26,136.88,136.84,13.8808]
[1642635611050,6.26,136.88,136.85,0.25]
[1642635611949,6.26,136.88,136.85,11.209]
[1642635612749,0.26,136.88,136.86,6.06439994]
[1642635613148,6.26,136.89,136.86,6.06439994]
[1642635614348,17.2196,136.89,136.86,6.06439994]
[1642635614554,17.2196,136.89,136.84,11.2199]
[1642635614749,17.2196,136.89,136.85,0.25]
[1642635617883,17.2196,136.89,136.84,11.2199]
[1642635618083,0.25,136.88,136.84,11.2199]
[1642635618282,11.2107,136.88,136.81,2.922]
[1642635618482,11.2107,136.88,136.82,6.0]
[1642635618687,6.0,136.87,136.81,2.922]
[1642635618887,10.6,136.86,136.81,2.922]
[1642635619086,44.0005578,136.85,136.81,2.922]
[1642635619282,11.2155,136.84,136.81,2.922]
[1642635619482,21.8155,136.84,136.81,2.922]